bitfinex/quotes_ETHUSD_20250322
["timestamp","ask_amount","ask_price","bid_price","bid_amount"]
[1742662417752,5.03347,1986.7,1986.5,31.27]
[1742662418062,0.16784192,1986.6,1986.5,31.27]
[1742662418586,5.03347,1986.7,1986.5,31.27]
[1742662418788,0.16784192,1986.6,1986.5,31.27]
[1742662418989,5.03347,1986.7,1986.5,31.27]
[1742662419289,0.16784192,1986.6,1986.5,31.27]
[1742662419588,5.03347,1986.7,1986.5,31.27]
[1742662419792,0.16784192,1986.6,1986.5,31.27]
[1742662419992,10.06712,1986.7,1986.5,31.27]
[1742662420164,0.16784192,1986.6,1986.5,31.27]
[1742662420487,10.06712,1986.7,1986.5,31.27]
[1742662420689,0.16784192,1986.6,1986.5,31.27]
[1742662421395,5.03347,1986.7,1986.5,31.27]
[1742662421578,0.16784192,1986.6,1986.5,31.27]
[1742662421893,5.03347,1986.7,1986.5,31.27]
[1742662422091,0.16784192,1986.6,1986.5,31.27]
[1742662422495,5.03347,1986.7,1986.5,31.27]
[1742662422681,0.16784192,1986.6,1986.5,31.27]
[1742662422996,5.03347,1986.7,1986.5,31.27]
[1742662423191,0.16784192,1986.6,1986.5,31.27]
[1742662423489,5.03347,1986.7,1986.5,31.27]
[1742662423675,0.16784192,1986.6,1986.5,31.27]
[1742662423877,5.03347,1986.7,1986.5,31.27]
[1742662424057,0.16784192,1986.6,1986.5,31.27]
[1742662424257,5.03347,1986.7,1986.5,31.27]
[1742662424457,0.16784192,1986.6,1986.5,31.27]
[1742662424658,5.03347,1986.7,1986.5,31.27]
[1742662424904,0.16784192,1986.6,1986.5,31.27]
[1742662425187,5.03347,1986.7,1986.5,31.27]
[1742662425358,0.16784192,1986.6,1986.5,31.27]
[1742662425557,5.03347,1986.7,1986.5,31.27]
[1742662425757,0.16784192,1986.6,1986.5,31.27]
[1742662425979,5.03347,1986.7,1986.5,31.27]
[1742662426188,0.16784192,1986.6,1986.5,31.27]
[1742662426366,5.03347,1986.7,1986.5,31.27]
[1742662426566,0.16784192,1986.6,1986.5,31.27]
[1742662426766,5.03324,1986.8,1986.5,31.27]
[1742662427000,0.16816799,1986.7,1986.5,31.27]
[1742662427209,0.16816799,1986.7,1986.5,5.12902072]
[1742662427394,0.16816799,1986.7,1986.6,26.611]
[1742662430817,0.16816799,1986.7,1986.6,27.08221287]
[1742662433018,0.7525,1987.0,1986.6,32.55633287]
[1742662433317,0.16887775,1986.7,1986.6,32.55633287]
[1742662433516,0.7525,1987.0,1986.6,33.71900367]
[1742662433880,0.16951501,1986.9,1986.6,33.71900367]
[1742662434116,0.16951501,1986.9,1986.7,0.47121287]
[1742662435585,0.16951501,1986.9,1986.6,33.2477908]
[1742662435785,0.16951501,1986.9,1986.7,0.05032875]
[1742662435996,0.16951501,1986.9,1986.7,1.11068382]
[1742662436406,0.16951501,1986.9,1986.7,1.06035507]
[1742662436600,0.16951501,1986.9,1986.7,1.11068379]
[1742662436828,0.16951501,1986.9,1986.7,1.06035507]
[1742662437030,0.16951501,1986.9,1986.8,0.47139552]
[1742662443147,9.13067061,1986.9,1986.8,0.47139552]
[1742662443342,9.96488222,1986.9,1986.8,5.12139552]
[1742662443842,9.96488222,1986.9,1986.8,4.65]
[1742662445142,11.68130746,1986.9,1986.8,4.65]
[1742662445342,11.61839585,1986.9,1986.8,4.65]
[1742662446944,5.03347,1986.7,1986.6,26.611]
[1742662447127,5.03347,1986.7,1986.6,31.261]
[1742662447311,5.2020877,1986.7,1986.6,31.261]
[1742662447514,5.9733877,1986.7,1986.6,31.261]
[1742662453958,5.2020877,1986.7,1986.6,31.261]
[1742662454859,0.1686177,1986.7,1986.6,31.261]
[1742662455058,10.82413,1986.9,1986.6,31.261]
[1742662455261,0.1686177,1986.7,1986.6,31.261]
[1742662455434,10.82413,1986.9,1986.6,31.261]
[1742662455637,0.1686177,1986.7,1986.6,31.261]
[1742662455837,5.79099,1986.9,1986.6,31.261]
[1742662456038,0.1686177,1986.7,1986.6,31.261]
[1742662456356,5.033,1986.9,1986.6,31.261]
[1742662456867,0.16850025,1986.8,1986.6,31.261]
[1742662457068,5.033,1986.9,1986.6,31.261]
[1742662457232,0.16817422,1986.7,1986.6,31.261]
[1742662457437,5.033,1986.9,1986.6,31.261]
[1742662457637,0.16817422,1986.7,1986.6,31.261]
[1742662457832,5.033,1986.9,1986.6,31.261]
[1742662458166,0.16817422,1986.7,1986.6,31.261]
[1742662458368,5.033,1986.9,1986.6,31.261]
[1742662458867,0.16855938,1986.8,1986.6,31.261]
[1742662459174,5.033,1986.9,1986.6,31.261]
[1742662459669,0.16855938,1986.8,1986.6,31.261]
[1742662459871,10.06609,1986.9,1986.6,31.261]
[1742662460048,0.1682777,1986.7,1986.6,31.261]
[1742662460249,5.033,1986.9,1986.6,31.261]
[1742662460438,0.1682777,1986.7,1986.6,31.261]
[1742662460640,5.78527,1987.0,1986.7,0.4404]
[1742662461067,5.78527,1987.0,1986.7,0.49072978]
[1742662461268,0.7525,1987.0,1986.7,0.4404]
[1742662461469,0.7525,1987.0,1986.8,5.03319]
[1742662461770,0.7525,1987.0,1986.9,0.943719]
[1742662461974,0.7525,1987.0,1986.9,5.976679]
[1742662462269,0.7525,1987.0,1986.9,6.02700292]
[1742662463868,0.7525,1987.0,1986.9,5.976679]
[1742662469303,0.92175571,1987.0,1986.9,5.976679]
[1742662470512,0.92175571,1987.0,1986.9,5.536279]
[1742662470802,0.92175571,1987.0,1986.9,0.503319]
[1742662472695,0.92175571,1987.0,1986.9,8.54813943]
[1742662472873,0.92175571,1987.0,1986.9,8.59846204]
[1742662473075,0.92175571,1987.0,1986.9,8.54813943]
[1742662473995,0.7525,1987.0,1986.9,8.54813943]
[1742662474203,0.92265739,1987.0,1986.9,8.54813943]
[1742662475186,0.92265739,1987.0,1986.9,10.26175947]
[1742662477415,0.7525,1987.0,1986.9,10.81175947]
[1742662478923,0.92265739,1987.0,1986.9,10.81175947]
[1742662480018,0.92265739,1987.0,1986.9,37.41475947]
[1742662480802,0.7525,1987.0,1986.9,37.41475947]
[1742662481603,0.92265739,1987.0,1986.9,32.579679]
[1742662481926,0.92265739,1987.0,1986.9,32.139279]
[1742662483828,0.92265739,1987.0,1986.9,27.106319]
[1742662486103,0.92265739,1987.0,1986.9,26.603]
[1742662486431,6.76776739,1987.0,1986.9,31.252]
[1742662490009,1.73505739,1987.0,1986.9,31.252]
[1742662490715,0.92265739,1987.0,1986.9,31.252]
[1742662492033,1.73505739,1987.0,1986.9,31.252]
[1742662492335,6.76776739,1987.0,1986.9,31.252]
[1742662492640,8.37629818,1987.0,1986.9,31.252]
[1742662492954,8.37629818,1987.0,1986.9,31.253]
[1742662493111,8.37629818,1987.0,1986.9,26.603]
[1742662493314,8.43920936,1987.0,1986.9,31.253]
[1742662493709,8.37629818,1987.0,1986.9,26.603]
[1742662493913,8.37629818,1987.0,1986.9,31.256]
[1742662494211,8.43921167,1987.0,1986.9,31.256]
[1742662494419,8.37629818,1987.0,1986.9,31.256]
[1742662494835,8.43921166,1987.0,1986.9,31.256]
[1742662495044,12.72429213,1987.0,1986.9,31.256]
[1742662495241,12.66137865,1987.0,1986.9,31.256]
[1742662497154,10.94876255,1987.0,1986.9,31.256]
[1742662500958,10.94876255,1987.0,1986.9,26.603]
[1742662501122,10.94876255,1987.0,1986.9,31.253]
[1742662504649,10.94876255,1987.0,1986.9,4.65]
[1742662513675,0.92265739,1987.0,1986.9,4.65]
[1742662523891,0.92265739,1987.0,1986.9,31.256]
[1742662525701,0.92265739,1987.0,1986.9,33.82846437]
[1742662527673,0.92265739,1987.0,1986.9,38.86142437]
[1742662528810,0.92265739,1987.0,1986.9,39.30182437]
[1742662535033,0.7525,1987.0,1986.9,39.30182437]
[1742662539213,0.7525,1987.0,1986.9,31.256]
[1742662539596,0.90541617,1987.0,1986.9,31.256]
[1742662545444,0.90541617,1987.0,1986.9,33.82846437]
[1742662545745,0.7525,1987.0,1986.9,33.82846437]
[1742662546140,0.90537183,1987.0,1986.9,33.82846437]
[1742662547248,0.7525,1987.0,1986.9,33.82846437]
[1742662547427,0.7525,1987.0,1986.9,38.86142437]
[1742662547830,0.90537183,1987.0,1986.9,38.86142437]
[1742662552752,0.90537183,1987.0,1986.9,31.256]
[1742662560074,0.90537183,1987.0,1986.9,36.28896]
[1742662561588,0.90537183,1987.0,1986.9,26.606]
[1742662561885,6.72948183,1987.0,1986.9,31.255]
[1742662562581,1.69677183,1987.0,1986.9,31.255]
[1742662576383,6.72948183,1987.0,1986.9,31.255]
[1742662576782,1.69677183,1987.0,1986.9,31.255]
[1742662577573,0.90537183,1987.0,1986.9,31.255]
[1742662577883,0.90537183,1987.0,1986.9,36.28796]
[1742662579261,0.90537183,1987.0,1986.9,38.86042437]
[1742662579658,0.7525,1987.0,1986.9,38.86042437]
[1742662580685,0.90482502,1987.0,1986.9,38.86042437]
[1742662581368,0.7525,1987.0,1986.9,38.86042437]
[1742662582165,0.7525,1987.0,1986.9,39.86733294]
[1742662587569,0.7525,1987.0,1986.9,40.85773294]
[1742662603327,0.7525,1987.0,1986.9,43.85773294]
[1742662627462,0.7525,1987.0,1986.9,43.41733294]
[1742662630981,0.7525,1987.0,1986.9,40.41733294]
[1742662631141,1.5673,1987.0,1986.9,27.61290857]
[1742662631342,1.5673,1987.0,1986.9,31.253]
[1742662631884,1.70733466,1987.0,1986.9,31.253]
[1742662636708,1.70733466,1987.0,1986.9,36.28596]
[1742662641668,1.70733466,1987.0,1986.9,38.85842437]
[1742662643708,0.89253466,1987.0,1986.9,38.85842437]
[1742662644201,0.7525,1987.0,1986.9,38.85842437]
[1742662644600,0.7525,1987.0,1986.9,39.40842437]
[1742662644601,0.89191397,1987.0,1986.9,39.40842437]
[1742662644984,0.7525,1987.0,1986.9,39.40842437]
[1742662652120,0.7525,1987.0,1986.9,42.40842437]
[1742662658134,0.7525,1987.0,1986.9,39.40842437]
[1742662680167,0.7525,1987.0,1986.9,45.40842437]
[1742662680549,1.5488,1987.0,1986.9,42.40842437]
[1742662681050,1.5488,1987.0,1986.9,41.85842437]
[1742662684669,1.5488,1987.0,1986.9,31.63896]
[1742662684871,9.15397437,1987.0,1986.9,31.252]
[1742662685070,5.68012177,1987.0,1986.9,31.252]
[1742662685566,3.1076574,1987.0,1986.9,31.252]
[1742662686069,1.68901196,1987.0,1986.9,31.252]
[1742662695394,1.68901196,1987.0,1986.9,36.28496]
[1742662696595,1.68901196,1987.0,1986.9,31.252]
[1742662699431,6.7846327,1987.0,1986.9,26.606]
[1742662699588,6.7846327,1987.0,1986.9,31.253]
[1742662699789,8.22359041,1987.0,1986.9,31.253]
[1742662700499,8.16067967,1987.0,1986.9,31.253]
[1742662701424,10.73314404,1987.0,1986.9,31.253]
[1742662705745,8.16067967,1987.0,1986.9,31.253]
[1742662711225,10.79605862,1987.0,1986.9,31.253]
[1742662711423,10.73314404,1987.0,1986.9,31.253]
[1742662712254,10.73314404,1987.0,1986.9,4.647]
[1742662716534,5.80911,1986.8,1986.7,26.606]
[1742662716732,9.66691883,1986.8,1986.7,26.606]
[1742662729153,8.8280954,1986.8,1986.7,26.606]
[1742662729465,7.7438794,1986.8,1986.7,26.606]
[1742662729762,5.17141503,1986.8,1986.7,26.606]
[1742662730580,0.13820503,1986.8,1986.7,26.606]
[1742662730861,7.60550437,1986.9,1986.7,26.606]
[1742662731066,0.12513609,1986.8,1986.7,26.606]
[1742662731261,7.6684227,1986.9,1986.7,26.606]
[1742662731465,0.12513609,1986.8,1986.7,26.606]
[1742662731765,5.03321,1986.8,1986.7,26.606]
[1742662731965,7.73081046,1986.8,1986.7,26.606]
[1742662733066,7.79372845,1986.8,1986.7,26.606]
[1742662733270,9.84980529,1986.8,1986.7,26.606]
[1742662735774,5.15834609,1986.8,1986.7,26.606]
[1742662737139,7.79373118,1986.8,1986.7,26.606]
[1742662738276,8.60563118,1986.8,1986.7,31.254]
[1742662744040,0.18805681,1986.8,1986.7,31.254]
[1742662744266,0.12513609,1986.8,1986.7,31.254]
[1742662744467,5.09587893,1986.9,1986.7,31.254]
[1742662744968,0.12280892,1986.8,1986.7,31.254]
[1742662745169,5.03296,1986.9,1986.7,31.254]
[1742662745372,0.12280892,1986.8,1986.7,31.254]
[1742662745534,5.03296,1986.9,1986.7,31.254]
[1742662745737,0.12280892,1986.8,1986.7,31.254]
[1742662745968,5.03296,1986.9,1986.7,31.254]
[1742662746275,0.12280892,1986.8,1986.7,31.254]
[1742662746570,5.03296,1986.9,1986.7,31.254]
[1742662746870,0.12265203,1986.8,1986.7,31.254]
[1742662747538,5.03296,1986.9,1986.7,31.254]
[1742662747739,0.12265203,1986.8,1986.7,31.254]
[1742662748042,0.7525,1987.0,1986.9,5.03296]
[1742662748244,0.7525,1987.0,1986.8,7.60546437]
[1742662748542,0.865583,1987.0,1986.7,39.30031437]
[1742662748746,0.865583,1987.0,1986.7,36.72785]
[1742662749668,0.865583,1987.0,1986.7,41.76115]
[1742662750348,0.865583,1987.0,1986.7,44.33361437]
[1742662750859,0.865583,1987.0,1986.8,5.03321]
[1742662751565,0.865583,1987.0,1986.9,0.4404]
[1742662751740,0.865583,1987.0,1986.9,0.987761]
[1742662756280,0.865583,1987.0,1986.9,1.45887068]
[1742662758173,0.865583,1987.0,1986.9,0.47110968]
[1742662758976,5.96120191,1987.0,1986.9,0.47110968]
[1742662759447,5.96120191,1987.0,1986.8,0.47110968]
[1742662760681,5.96120191,1987.0,1986.7,31.254]
[1742662763080,0.865583,1987.0,1986.7,41.32073]
[1742662763450,0.865583,1987.0,1986.7,43.89319437]
[1742662763753,0.865583,1987.0,1986.8,5.50423318]
[1742662764983,0.865583,1987.0,1986.8,5.55456239]
[1742662765188,0.865583,1987.0,1986.9,10.60542437]
[1742662765489,0.7525,1987.0,1986.9,11.62648755]
[1742662767072,0.7525,1987.0,1986.9,13.33793199]
[1742662770811,0.7525,1987.0,1986.9,14.35374005]
[1742662777383,0.7525,1987.0,1986.9,40.95274005]
[1742662787943,0.7525,1987.0,1986.9,40.48167687]
[1742662788546,0.7525,1987.0,1986.9,40.95214087]
[1742662789244,0.7525,1987.0,1986.9,39.23825057]
[1742662797455,0.7525,1987.0,1986.9,42.23825057]
[1742662802357,0.7525,1987.0,1986.9,39.23825057]
[1742662802939,0.7525,1987.0,1986.9,43.88325057]
[1742662808167,0.7525,1987.0,1986.9,46.88325057]
[1742662839717,7.4e-06,1987.0,1986.9,46.88325057]
[1742662839886,0.8064,1987.8,1987.7,8.03094]
[1742662840081,0.8064,1987.8,1987.7,41.84395851]
[1742662840678,5.09180038,1988.5,1988.1,5.0299]
[1742662840882,0.8064,1988.4,1988.2,4.656]
[1742662841113,0.8064,1988.4,1988.2,7.22601851]
[1742662841282,0.8064,1988.4,1988.3,5.02942]
[1742662841483,0.8064,1988.4,1988.2,9.68553]
[1742662842506,0.8064,1988.4,1988.2,12.72630081]
[1742662842906,0.8064,1988.4,1988.2,17.75581081]
[1742662843108,0.8064,1988.4,1988.3,5.02942]
[1742662843608,0.8064,1988.4,1988.2,13.74707047]
[1742662844212,0.8064,1988.4,1988.2,18.30584817]
[1742662844502,0.8064,1988.4,1988.3,5.02942]
[1742662844713,0.8064,1988.4,1988.2,13.27626817]
[1742662847446,0.8064,1988.4,1988.3,5.02942]
[1742662848314,0.8064,1988.4,1988.3,7.59943851]
[1742662848509,0.8064,1988.4,1988.3,5.02942]
[1742662849228,0.8064,1988.4,1988.3,7.59943851]
[1742662849952,0.8064,1988.4,1988.3,34.18943851]
[1742662851745,5.02842,1988.7,1988.5,5.02889]
[1742662851746,0.8064,1988.7,1988.5,5.02889]
[1742662851946,0.8064,1988.7,1988.6,4.654]
[1742662853521,0.8064,1988.7,1988.6,9.68266]
[1742662853721,0.8064,1988.7,1988.6,12.25267851]
[1742662854347,0.8064,1988.9,1988.6,17.28117851]
[1742662854566,0.8064,1988.9,1988.6,12.25251851]
[1742662856432,0.8064,1988.9,1988.6,9.6825]
[1742662856633,0.8064,1988.9,1988.6,10.68050096]
[1742662857856,0.8064,1988.9,1988.6,18.27900947]
[1742662858050,0.8064,1988.9,1988.6,13.25050947]
[1742662858245,0.8064,1988.9,1988.7,1.32505095]
[1742662858563,0.8064,1988.9,1988.7,6.35345095]
[1742662859265,0.8064,1988.9,1988.7,1.32505095]
[1742662865839,0.8064,1988.9,1988.8,26.582]
[1742662867071,5.8343,1988.9,1988.8,26.582]
[1742662867377,5.89715261,1988.9,1988.8,26.582]
[1742662867946,5.8343,1988.9,1988.8,26.582]
[1742662870086,5.89715263,1988.9,1988.8,26.582]
[1742662872390,5.8343,1988.9,1988.8,26.582]
[1742662875092,0.8064,1988.9,1988.8,26.582]
[1742662875581,5.02777,1989.0,1988.8,26.582]
[1742662875787,5.02777,1989.0,1988.9,26.581]
[1742662877185,0.7554,1989.1,1988.9,33.77217847]
[1742662877395,0.7554,1989.1,1989.0,4.643]
[1742662877697,8.35280851,1989.1,1989.0,4.643]
[1742662878053,8.41565453,1989.1,1989.0,5.11371509]
[1742662878757,0.81824602,1989.1,1989.0,5.11371509]
[1742662879863,8.41565453,1989.1,1989.0,5.11771509]
[1742662880067,5.78279,1989.1,1989.0,5.11771509]
[1742662880881,5.78279,1989.1,1989.0,4.647]
[1742662883059,0.7554,1989.1,1989.0,4.647]
[1742662883264,13.37950851,1989.3,1989.0,5.11797405]
[1742662884095,5.02717,1989.2,1989.0,5.11797405]
[1742662884601,7.66003452,1989.2,1989.0,4.647]
[1742662884974,2.63286452,1989.2,1989.0,4.647]
[1742662885281,7.59724851,1989.2,1989.0,4.647]
[1742662887302,12.62457851,1989.2,1989.0,4.647]
[1742662887476,7.59724851,1989.2,1989.0,4.647]
[1742662889810,12.62460851,1989.2,1989.0,4.647]
[1742662889977,7.59724851,1989.2,1989.1,26.578]
[1742662890503,8.38124851,1989.2,1989.1,26.578]
[1742662890721,9.78204977,1989.2,1989.1,26.578]
[1742662891205,9.78204977,1989.2,1989.1,31.222]
[1742662893802,9.78204977,1989.2,1989.1,26.578]
[1742662895907,12.35206828,1989.2,1989.1,26.578]
[1742662896106,15.28922387,1989.2,1989.1,26.578]
[1742662896305,5.0279,1988.9,1988.8,4.644]
[1742662896510,5.81215,1988.8,1988.6,26.579]
[1742662896704,0.06285996,1988.7,1988.6,26.579]
[1742662896905,2.63287847,1988.7,1988.6,26.579]
[1742662897194,7.66128847,1988.7,1988.6,26.579]
[1742662897410,8.44528847,1988.7,1988.6,26.579]
[1742662897610,9.79263232,1988.7,1988.6,26.579]
[1742662902137,15.93263232,1988.7,1988.6,26.579]
[1742662902339,15.86977236,1988.7,1988.6,26.579]
[1742662903411,5.02991,1988.2,1988.0,26.584]
[1742662903618,7.59992851,1988.2,1988.1,4.648]
[1742662905938,7.66280551,1988.2,1988.1,4.648]
[1742662907133,7.59992851,1988.2,1988.1,4.648]
[1742662907339,5.02991,1988.2,1988.1,4.648]
[1742662909434,5.0295,1988.3,1988.1,4.648]
[1742662909640,7.66239123,1988.3,1988.1,4.648]
[1742662910017,5.09237272,1988.3,1988.1,4.648]
[1742662911510,5.0295,1988.3,1988.1,4.648]
[1742662916646,7.59919851,1988.4,1988.1,4.648]
[1742662916826,5.02918,1988.4,1988.2,26.588]
[1742662918453,7.59919851,1988.4,1988.2,26.588]
[1742662920464,12.62856851,1988.4,1988.2,26.588]
[1742662920951,5.09229155,1988.3,1988.2,26.588]
[1742662921554,8.47701006,1988.3,1988.2,26.588]
[1742662923857,7.66231006,1988.3,1988.2,26.588]
[1742662927356,5.09229155,1988.3,1988.2,26.588]
[1742662927569,7.66231006,1988.3,1988.2,26.588]
[1742662928060,5.09229155,1988.3,1988.2,26.588]
[1742662928281,7.66231006,1988.3,1988.2,26.588]
[1742662928430,7.66231006,1988.3,1988.2,27.05962473]
[1742662931894,7.59943851,1988.3,1988.2,27.05962473]
[1742662932357,7.66231228,1988.3,1988.2,27.05962473]
[1742662932553,7.59943851,1988.3,1988.2,27.05962473]
[1742662933471,5.02942,1988.3,1988.2,27.05962473]
[1742662934498,5.02918,1988.4,1988.2,27.05962473]
[1742662935772,10.05846,1988.4,1988.2,27.05962473]
[1742662935985,5.02918,1988.4,1988.2,27.05962473]
[1742662936609,7.59919851,1988.4,1988.2,26.588]
[1742662936909,5.02918,1988.4,1988.2,26.588]
[1742662937632,10.05853,1988.4,1988.2,26.588]
[1742662937782,5.02918,1988.4,1988.2,26.588]
[1742662937982,5.09229201,1988.3,1988.2,26.588]
[1742662938629,5.02942,1988.3,1988.2,26.588]
[1742662939018,7.59924851,1988.4,1988.2,26.588]
[1742662939232,5.02815,1988.8,1988.3,2.57001851]
[1742662939438,5.02824,1988.8,1988.4,7.59899851]
[1742662939631,5.02799,1988.9,1988.5,9.67181]
[1742662939632,5.02809,1988.9,1988.5,9.67181]
[1742662939835,8.35784851,1989.1,1988.6,2.57001851]
[1742662940125,5.02765,1989.0,1988.6,10.05695]
[1742662940336,10.0555,1989.0,1988.6,5.02846]
[1742662940509,12.6883721,1989.0,1988.6,5.02846]
[1742662940711,12.62551851,1989.0,1988.6,5.02846]
[1742662940913,0.06285359,1988.9,1988.6,5.02846]
[1742662941612,5.09080359,1988.9,1988.6,5.02846]
[1742662941918,5.02819,1988.8,1988.5,9.67189]
[1742662942230,5.02819,1988.8,1988.5,10.89608085]
[1742662942527,5.09104509,1988.8,1988.5,11.90107155]
[1742662942732,5.09104509,1988.8,1988.6,0.47078901]
[1742662942936,12.6894036,1988.8,1988.6,0.47078901]
[1742662943101,7.59820851,1988.8,1988.6,0.47078901]
[1742662943504,7.66106682,1988.8,1988.6,0.47078901]
[1742662943855,7.66106682,1988.8,1988.5,5.6479907]
[1742662944036,7.66106682,1988.8,1988.5,7.21860077]
[1742662946962,5.02841,1988.7,1988.5,7.21860077]
[1742662947362,5.02841,1988.7,1988.5,5.6479907]
[1742662947652,5.02841,1988.7,1988.5,6.11812712]
[1742662947860,7.59842851,1988.7,1988.5,5.11313642]
[1742662948219,7.66128704,1988.7,1988.5,5.11313642]
[1742662948414,12.68993704,1988.7,1988.6,4.642]
[1742662948619,7.59842851,1988.7,1988.6,4.642]
[1742662949261,7.66128837,1988.7,1988.6,4.642]
[1742662949614,7.59842851,1988.7,1988.6,4.642]
[1742662949942,7.6612884,1988.7,1988.6,4.642]
[1742662950145,7.6612884,1988.7,1988.4,1.02437574]
[1742662950146,5.02871,1988.6,1988.4,1.02437574]
[1742662950352,7.59872851,1988.6,1988.5,4.643]
[1742662951216,5.02871,1988.6,1988.5,4.643]
[1742662951515,7.59872851,1988.6,1988.5,4.643]
[1742662951959,7.66159102,1988.6,1988.5,4.643]
[1742662953253,8.93059112,1988.6,1988.5,4.643]
[1742662953467,8.86772861,1988.6,1988.5,4.643]
[1742662954950,8.93059256,1988.6,1988.5,4.643]
[1742662957094,8.93059256,1988.6,1988.5,31.226]
[1742662957288,7.59872851,1988.6,1988.5,31.226]
[1742662958878,7.66159241,1988.6,1988.5,31.226]
[1742662963793,7.59872851,1988.6,1988.5,31.226]
[1742662966055,7.66159228,1988.6,1988.5,31.226]
[1742662966286,7.59872851,1988.6,1988.5,31.226]
[1742662970105,9.72260603,1988.6,1988.5,26.583]
[1742662970417,9.72260603,1988.6,1988.5,31.225]
[1742662971503,9.72260603,1988.6,1988.5,26.583]
[1742662975746,9.65974236,1988.6,1988.5,26.583]
[1742662976104,5.02916,1988.4,1988.3,4.642]
[1742662976305,7.59917851,1988.4,1988.3,4.642]
[1742662976656,5.029,1988.5,1988.3,4.642]
[1742662976820,5.029,1988.5,1988.3,5.1062]
[1742662977178,5.09186532,1988.5,1988.3,5.1062]
[1742662977756,7.66188383,1988.5,1988.3,4.642]
[1742662978057,2.57001851,1988.4,1988.3,4.642]
[1742662978951,7.59917851,1988.4,1988.2,0.47099129]
[1742662979154,5.09240125,1988.3,1988.1,26.586]
[1742662979369,5.09240125,1988.3,1988.2,4.643]
[1742662979536,5.02908,1988.5,1988.2,4.643]
[1742662979848,5.09194556,1988.5,1988.2,4.643]
[1742662980215,5.02917,1988.4,1988.2,4.643]
[1742662980940,5.02917,1988.4,1988.3,26.587]
[1742662982078,5.0920383,1988.4,1988.3,26.587]
[1742662982657,7.66205681,1988.4,1988.3,26.587]
[1742662982858,5.0920383,1988.4,1988.3,26.587]
[1742662983927,5.02869,1988.6,1988.3,26.587]
[1742662984831,5.02869,1988.6,1988.4,0.47111828]
[1742662986348,10.05754,1988.6,1988.3,26.587]
[1742662986737,5.02869,1988.6,1988.3,26.587]
[1742662987380,5.02849,1988.7,1988.3,39.21570851]
[1742662987675,5.02775,1989.0,1988.6,5.02851]
[1742662987879,5.02773,1989.0,1988.7,4.652]
[1742662991065,5.02801,1988.9,1988.7,4.652]
[1742662995246,5.02801,1988.9,1988.8,26.584]
[1742662995855,5.02771,1989.0,1988.8,26.584]
[1742662996054,5.02742,1989.1,1988.8,26.584]
[1742662997577,5.02774,1989.0,1988.8,26.584]
[1742663000545,5.09058991,1989.0,1988.8,26.584]
[1742663002779,5.02774,1989.0,1988.8,26.584]
[1742663002999,5.02741,1989.1,1988.8,26.584]
[1742663003646,10.05501,1989.1,1988.8,26.584]
[1742663004578,5.02765,1989.0,1988.8,26.584]
[1742663009662,5.02765,1989.0,1988.9,26.581]
[1742663016692,10.055,1989.1,1988.9,26.581]
[1742663019465,5.02742,1989.1,1988.9,26.581]
[1742663019666,10.05502,1989.1,1988.9,26.581]
[1742663020300,10.05503,1989.1,1988.9,26.581]
[1742663021802,5.02765,1989.0,1988.9,26.581]
[1742663029509,5.02747,1989.1,1988.9,26.581]
[1742663030905,10.05504,1989.1,1988.9,26.581]
[1742663032215,5.02765,1989.0,1988.9,26.581]
[1742663032911,5.02747,1989.1,1988.9,26.581]
[1742663033106,5.85426,1989.2,1988.9,26.581]
[1742663033410,0.01,1989.4,1989.1,5.02717]
[1742663033609,0.01,1989.4,1989.2,4.641]
[1742663034632,5.09950667,1989.4,1989.2,4.641]
[1742663035282,5.03667,1989.4,1989.2,4.641]
[1742663036417,0.01,1989.4,1989.3,7.59359612]
[1742663036710,0.01,1989.4,1989.3,3.79016573]
[1742663038317,0.01,1989.4,1989.3,1.22345961]
[1742663038517,0.01,1989.4,1989.2,4.641]
[1742663039016,5.03679,1989.4,1989.2,4.641]
[1742663040117,0.01,1989.4,1989.3,7.59359612]
[1742663040709,0.01,1989.4,1989.3,5.02689]
[1742663041419,0.01,1989.4,1989.3,7.59359612]
[1742663042519,0.01,1989.4,1989.3,7.64385369]
[1742663043213,0.01,1989.4,1989.3,8.67409662]
[1742663043415,0.01,1989.4,1989.3,8.62383905]
[1742663044020,0.01,1989.4,1989.3,8.67409636]
[1742663045222,0.01,1989.4,1989.3,10.38178217]
[1742663045522,0.01,1989.4,1989.3,10.33152486]
[1742663046324,0.01,1989.4,1989.3,13.88152486]
[1742663047528,0.01,1989.4,1989.3,10.88152486]
[1742663048026,0.01,1989.4,1989.3,6.05713293]
[1742663049196,0.01,1989.4,1989.3,10.33152486]
[1742663049738,0.01,1989.4,1989.3,36.90252486]
[1742663051338,0.01,1989.4,1989.3,37.45252486]
[1742663054528,0.01,1989.4,1989.3,40.45252486]
[1742663056038,0.01,1989.4,1989.3,37.45252486]
[1742663064772,0.01,1989.4,1989.3,27.60124293]
[1742663066558,0.01,1989.4,1989.3,32.62813293]
[1742663069727,0.01,1989.4,1989.3,36.90252486]
[1742663070852,0.01,1989.4,1989.3,37.45252486]
[1742663071258,0.01,1989.4,1989.3,35.74245739]
[1742663073166,0.01,1989.4,1989.3,37.45220456]
[1742663079440,0.01,1989.4,1989.3,42.10620456]
[1742663079645,0.01,1989.4,1989.3,37.83213293]
[1742663084487,0.01,1989.4,1989.3,42.10620456]
[1742663091185,0.01,1989.4,1989.3,45.10620456]
[1742663093113,0.01,1989.4,1989.3,43.39634665]
[1742663098025,0.01,1989.4,1989.3,37.82313293]
[1742663098795,0.01,1989.4,1989.3,40.38734665]
[1742663100126,0.01,1989.4,1989.3,43.38734665]